bitfinex/quotes_ETHUSD_20250808
["timestamp","ask_amount","ask_price","bid_price","bid_amount"]
[1754618066401,7.64476233,3891.6,3891.5,0.001]
[1754618067098,6.62643716,3891.6,3891.5,2.4309]
[1754618067596,6.62643716,3891.6,3891.5,0.001]
[1754618072304,8.89973716,3891.6,3891.5,0.001]
[1754618072735,7.06953716,3891.6,3891.5,0.001]
[1754618074505,8.89973716,3891.6,3891.5,0.001]
[1754618075309,8.21666233,3891.6,3891.5,0.001]
[1754618076307,7.77356233,3891.6,3891.5,0.001]
[1754618079317,3.84556233,3891.6,3891.5,0.001]
[1754618079488,6.62443716,3891.6,3891.5,2.4309]
[1754618079689,2.69843716,3891.6,3891.5,2.4309]
[1754618080003,6.49563716,3891.6,3891.5,2.4309]
[1754618080189,0.002,3891.7,3891.5,2.4309]
[1754618080390,3.926,3891.6,3891.5,2.24289]
[1754618080592,3.926,3891.6,3891.5,2.37169]
[1754618080979,3.926,3891.6,3891.5,2.80299]
[1754618080980,6.49563716,3891.6,3891.5,2.80299]
[1754618081181,6.49563716,3891.6,3891.5,0.1298]
[1754618081479,6.49563716,3891.6,3891.5,0.001]
[1754618081682,6.62443716,3891.6,3891.5,0.001]
[1754618082092,6.62443716,3891.6,3891.5,1.9996]
[1754618082487,6.62443716,3891.6,3891.5,0.001]
[1754618082693,6.62443716,3891.6,3891.5,2.4309]
[1754618083111,2.57158387,3891.7,3891.5,2.4309]
[1754618083323,0.002,3891.7,3891.6,0.4313]
[1754618083527,3.928,3891.7,3891.6,0.4313]
[1754618083733,3.928,3891.7,3891.6,2.2358]
[1754618083902,3.928,3891.7,3891.6,2.2778]
[1754618084226,0.002,3891.7,3891.6,6.91746]
[1754618084398,0.002,3891.7,3891.6,2.64746]
[1754618085528,0.002,3891.7,3891.6,5.21709716]
[1754618085887,0.002,3891.7,3891.6,14.34791106]
[1754618086422,0.002,3891.7,3891.6,11.7782739]
[1754618086592,0.002,3891.7,3891.6,14.34791106]
[1754618087115,0.002,3891.7,3891.6,11.7782739]
[1754618087318,0.002,3891.7,3891.6,14.34791106]
[1754618088521,0.002,3891.7,3891.6,11.7782739]
[1754618089119,0.002,3891.7,3891.6,14.34791106]
[1754618092033,0.002,3891.7,3891.6,18.28588539]
[1754618092238,0.002,3891.7,3891.6,17.89791106]
[1754618092806,0.002,3891.7,3891.6,12.14109716]
[1754618094513,0.002,3891.7,3891.6,9.57146]
[1754618094841,0.002,3891.7,3891.6,5.8573]
[1754618095211,0.002,3891.7,3891.6,0.1288]
[1754618095823,2.57157113,3891.7,3891.6,0.1288]
[1754618096141,2.56963716,3891.6,3891.5,0.001]
[1754618096331,3.31954799,3891.6,3891.5,0.001]
[1754618096533,7.24354799,3891.6,3891.5,0.001]
[1754618100551,5.56983527,3891.3,3891.2,1e-08]
[1754618100954,2.56996736,3891.1,3890.8,0.001]
[1754618101152,3.0,3890.8,3890.7,1e-08]
[1754618101318,6.12016551,3890.8,3890.7,1e-08]
[1754618101523,8.52246551,3890.8,3890.7,1e-08]
[1754618103736,6.00386551,3890.8,3890.7,1e-08]
[1754618103938,9.49416551,3890.8,3890.7,1e-08]
[1754618104240,9.49416551,3890.8,3890.7,1.80450001]
[1754618104241,8.09300992,3890.8,3890.7,1.80450001]
[1754618104766,6.49416551,3890.8,3890.7,2.27780001]
[1754618105351,6.49416551,3890.8,3890.7,2.27780001]
[1754618108374,3.924,3890.8,3890.7,2.27780001]
[1754618108544,6.49416551,3890.8,3890.7,2.27780001]
[1754618108862,2.57016551,3890.8,3890.7,2.27780001]
[1754618110358,2.57016551,3890.8,3890.7,1.80450001]
[1754618110963,2.57016551,3890.8,3890.7,2.27780001]
[1754618111462,4.0528,3890.9,3890.7,2.27780001]
[1754618111663,6.62290631,3890.9,3890.8,2.2778]
[1754618111965,4.0528,3890.9,3890.8,2.2778]
[1754618112141,3.924,3890.9,3890.8,2.2778]
[1754618112862,6.49409946,3890.9,3890.8,2.2778]
[1754618113170,2.57016551,3890.8,3890.7,1e-08]
[1754618114147,2.69890573,3890.9,3890.7,1.82930001]
[1754618114347,2.69890573,3890.9,3890.8,2.2888]
[1754618114568,0.1288,3890.9,3890.8,2.2888]
[1754618114879,2.69875909,3891.2,3890.8,2.51778]
[1754618115044,0.1288,3891.2,3890.8,0.22898]
[1754618115252,2.57003505,3891.0,3890.9,2.2888]
[1754618115575,2.57016551,3890.8,3890.7,1e-08]
[1754618116079,2.69896551,3890.8,3890.7,1e-08]
[1754618118480,4.98976551,3890.8,3890.7,1e-08]
[1754618118650,4.99176551,3890.8,3890.7,1e-08]
[1754618118847,5.74794557,3890.8,3890.7,1e-08]
[1754618120173,0.55,3890.7,3890.4,0.001]
[1754618120494,3.12056192,3890.2,3890.1,1e-08]
[1754618120659,15.25137582,3890.2,3890.1,1e-08]
[1754618120991,19.72307275,3890.2,3890.1,1e-08]
[1754618121484,10.04225885,3890.2,3890.1,1e-08]
[1754618122096,7.75145885,3890.2,3890.1,1e-08]
[1754618124064,19.72307275,3890.2,3890.1,1e-08]
[1754618125586,10.59225885,3890.2,3890.1,1e-08]
[1754618125789,19.72307275,3890.2,3890.1,1e-08]
[1754618126291,8.30145885,3890.2,3890.1,1e-08]
[1754618126584,10.59225885,3890.2,3890.1,1e-08]
[1754618126787,8.30145885,3890.2,3890.1,1e-08]
[1754618130068,8.30145885,3890.2,3890.1,1.82930001]
[1754618130500,8.30145885,3890.2,3890.1,1e-08]
[1754618130867,8.30145885,3890.2,3890.1,1.82930001]
[1754618131068,8.30145885,3890.2,3890.1,1e-08]
[1754618131910,10.59225885,3890.2,3890.1,1e-08]
[1754618133300,8.30145885,3890.2,3890.1,1e-08]
[1754618138795,10.59225885,3890.2,3890.1,1e-08]
[1754618142531,3.12095845,3889.6,3889.5,0.001]
[1754618142727,6.12095845,3889.6,3889.5,1e-08]
[1754618142931,3.12122287,3889.2,3888.8,1.8293]
[1754618143099,3.56214516,3889.2,3888.8,1.8293]
[1754618143430,3.56214516,3889.2,3888.6,1.8293]
[1754618145000,3.56214516,3889.2,3889.1,1e-08]
[1754618145526,6.03254516,3889.2,3889.1,1e-08]
[1754618145731,9.03254516,3889.2,3889.1,1e-08]
[1754618145934,9.03254516,3889.2,3888.9,1e-08]
[1754618145935,5.5713551,3889.0,3888.9,1e-08]
[1754618146103,5.7001551,3889.0,3888.9,1e-08]
[1754618146302,8.1705551,3889.0,3888.9,1e-08]
[1754618147031,6.1713551,3889.0,3888.9,1e-08]
[1754618147219,7.08511892,3889.0,3888.9,1e-08]
[1754618148337,7.63511892,3889.0,3888.9,1.80610001]
[1754618148503,3.2501551,3889.0,3888.9,2.26500001]
[1754618148906,2.7001551,3889.0,3888.9,2.26500001]
[1754618151526,2.7001551,3889.0,3888.9,1e-08]
[1754618151832,2.7001551,3889.0,3888.9,1.80610001]
[1754618152040,2.7001551,3889.0,3888.9,1e-08]
[1754618152736,2.7001551,3889.0,3888.9,2.26500001]
[1754618154707,2.7001551,3889.0,3888.9,1.80610001]
[1754618154907,3.2272931,3889.0,3888.9,1e-08]
[1754618155108,6.1286931,3889.0,3888.9,1e-08]
[1754618155945,4.1294931,3889.0,3888.9,1e-08]
[1754618156121,3.7772931,3889.0,3888.9,1e-08]
[1754618156638,4.1294931,3889.0,3888.9,1e-08]
[1754618157043,5.7764931,3889.0,3888.9,1e-08]
[1754618157248,9.1286931,3889.0,3888.9,1e-08]
[1754618160041,9.2476931,3889.0,3888.9,1e-08]
[1754618161030,10.7012931,3889.0,3888.9,1e-08]
[1754618161533,13.1716931,3889.0,3888.9,1e-08]
[1754618162041,3.12188416,3888.2,3888.1,0.04]
[1754618162241,10.04588416,3888.2,3888.1,0.04]
[1754618162459,10.17468416,3888.2,3888.1,0.04]
[1754618163740,3.55,3888.0,3887.5,1.8061]
[1754618163941,2.57247961,3887.3,3887.2,0.00559712]
[1754618164120,1.31747972,3887.9,3887.2,0.00559697]
[1754618164322,2.57247961,3887.3,3887.2,0.00559697]
[1754618164513,6.49647961,3887.3,3887.2,0.00559697]
[1754618165043,6.49647961,3887.3,3887.2,2.27059697]
[1754618166355,2.57247961,3887.3,3887.2,2.27059697]
[1754618166647,6.49747961,3887.3,3887.2,2.27059697]
[1754618169152,2.57247961,3887.3,3887.2,2.27059697]
[1754618169353,6.49747961,3887.3,3887.2,2.27059697]
[1754618170249,2.57247961,3887.3,3887.2,2.27059697]
[1754618170456,6.49747961,3887.3,3887.2,2.27059697]
[1754618171422,2.57203832,3888.0,3887.2,2.27059697]
[1754618171623,3.0,3888.1,3887.2,0.23675667]
[1754618171855,0.55,3888.5,3887.2,0.00559697]
[1754618172065,2.57215717,3887.8,3887.2,0.00559697]
[1754618172249,3.925,3887.7,3887.3,2.265]
[1754618172564,3.925,3887.7,3887.4,2.27059683]
[1754618172724,3.925,3887.7,3887.5,2.49765636]
[1754618172921,3.925,3887.7,3887.6,2.27059654]
[1754618173149,3.925,3887.7,3887.5,0.22705968]
[1754618173351,2.57183448,3888.3,3887.6,2.265]
[1754618173554,3.925,3888.2,3887.7,2.265]
[1754618173752,3.925,3888.2,3887.5,2.57232394]
[1754618173927,3.925,3888.2,3887.8,2.2696]
[1754618174128,6.49692055,3888.2,3887.8,1.8277]
[1754618174336,6.49692055,3888.2,3887.9,0.4419]
[1754618174845,0.1288,3888.1,3887.9,0.4419]
[1754618175049,0.1288,3888.1,3888.0,1.8277]
[1754618175763,2.7007503,3888.1,3888.0,1.8277]
[1754618175936,0.1288,3888.1,3888.0,1.8277]
[1754618176136,2.7007503,3888.1,3888.0,2.2696]
[1754618176452,0.1288,3888.1,3888.0,2.2696]
[1754618176831,3.925,3888.2,3888.0,2.49656]
[1754618177061,3.925,3888.4,3888.0,2.62536]
[1754618177238,3.925,3888.4,3888.1,2.2696]
[1754618177443,3.925,3888.4,3888.2,0.4419]
[1754618177841,3.925,3888.4,3888.3,1.8277]
[1754618178066,3.925,3888.4,3888.3,2.2696]
[1754618178585,3.925,3888.4,3888.0,0.1288]
[1754618178758,2.57193326,3888.2,3888.0,0.1288]
[1754618178972,6.4969503,3888.1,3888.0,1.9565]
[1754618179163,3.925,3888.1,3888.0,1.8277]
[1754618179365,6.4969503,3888.1,3888.0,1.8277]
[1754618179537,3.925,3888.1,3887.8,0.4419]
[1754618179737,6.4969503,3888.1,3888.0,1.8277]
[1754618179966,3.925,3888.1,3888.0,1.8277]
[1754618180170,3.925,3888.1,3888.0,2.2696]
[1754618180665,0.1288,3888.2,3888.0,2.2696]
[1754618180867,3.924,3888.3,3888.1,2.2696]
[1754618181067,3.924,3888.3,3888.2,1.8277]
[1754618181370,2.57193951,3888.2,3888.0,1.8277]
[1754618181572,6.62462799,3888.3,3888.2,1.8277]
[1754618182568,2.57193604,3888.2,3887.8,0.1288]
[1754618182770,2.57193604,3888.2,3887.9,2.2696]
[1754618182969,6.62462827,3888.3,3888.0,2.2696]
[1754618183340,2.57188531,3888.2,3888.1,1.8277]
[1754618184050,2.57188531,3888.2,3887.9,1.8277]
[1754618184381,6.62463235,3888.3,3888.0,2.2696]
[1754618184548,4.0528,3888.3,3888.1,0.4419]
[1754618184871,4.0528,3888.3,3887.7,2.70096952]
[1754618184872,4.0528,3888.3,3888.2,2.49656]
[1754618185414,3.924,3888.6,3888.2,2.49656]
[1754618185577,0.1288,3888.5,3888.0,0.1288]
[1754618185741,0.1288,3888.5,3888.3,2.2696]
[1754618186079,0.1288,3888.5,3888.4,0.4419]
[1754618186443,2.70048574,3888.5,3888.4,2.2696]
[1754618187371,0.1288,3888.5,3888.4,2.2696]
[1754618187968,2.70048574,3888.5,3888.4,2.2696]
[1754618188264,2.5719503,3888.1,3888.0,0.1288]
[1754618188458,2.5721533,3887.8,3887.6,1.8277]
[1754618188655,6.6249533,3887.8,3887.4,0.00559679]
[1754618188862,6.62497099,3887.8,3887.5,2.27519665]
[1754618189142,2.57221493,3887.7,3887.6,1.8332965]
[1754618189374,2.57221493,3887.7,3887.6,1.8277]
[1754618189944,2.57228601,3887.6,3887.4,1.8277]
[1754618190194,2.57234726,3887.5,3887.4,1.83329679]
[1754618190474,2.70109722,3887.6,3887.4,1.8277]
[1754618190681,2.70109722,3887.6,3887.3,0.001]
[1754618190878,2.70109722,3887.6,3887.4,2.2696]
[1754618191078,2.70109722,3887.6,3887.4,0.4419]
[1754618191247,2.70109722,3887.6,3887.5,1.8277]
[1754618191878,0.1288,3887.6,3887.5,2.2696]
[1754618192050,2.57203266,3888.0,3887.5,2.49666]
[1754618192373,6.49603266,3888.0,3887.6,2.2696]
[1754618192575,6.49603266,3888.0,3887.7,0.4419]
[1754618192774,2.57203266,3888.0,3887.7,0.4419]
[1754618193180,2.57208261,3887.9,3887.8,1.8277]
[1754618193577,4.0528,3888.1,3887.8,1.8277]
[1754618193877,6.62475738,3888.1,3887.9,2.2696]
[1754618194191,6.62476016,3888.1,3888.0,1.8277]
[1754618194358,0.1288,3888.1,3888.0,1.8277]
[1754618194681,2.57135593,3889.0,3888.2,2.5718255]
[1754618194850,0.1288,3888.9,3888.4,0.1288]
[1754618195050,0.1288,3888.9,3888.5,2.2696]
[1754618195272,0.1288,3888.9,3888.5,1.8277]
[1754618195467,0.1288,3888.9,3888.6,0.4419]
[1754618195782,0.1288,3888.9,3888.7,2.2696]
[1754618196077,2.57148734,3888.8,3888.7,1.8277]
[1754618197054,2.57148734,3888.8,3888.4,0.1288]
[1754618197380,6.49548734,3888.8,3888.5,2.2696]
[1754618197682,3.924,3888.8,3888.5,2.2696]
[1754618197885,3.924,3888.8,3888.5,0.4419]
[1754618198080,3.924,3888.8,3888.6,1.8277]
[1754618198383,0.1288,3888.9,3888.7,0.4419]
[1754618198881,0.1288,3889.1,3888.8,2.2696]
[1754618199079,0.1288,3889.1,3888.9,1.8277]
[1754618199788,2.70008899,3889.1,3888.9,1.8277]
[1754618200287,2.57136148,3889.0,3888.9,1.8277]
[1754618200486,2.3834,3889.0,3888.1,1.8277]
[1754618200699,2.571829,3888.3,3888.1,0.1288]
[1754618200985,2.57176532,3888.4,3887.9,0.1288]
[1754618201363,2.57176532,3888.4,3888.0,1.8277]
[1754618201562,4.0528,3888.5,3888.1,2.2696]
[1754618201891,4.0528,3888.5,3888.2,1.8277]
[1754618202458,4.0528,3888.5,3888.3,1.8277]
[1754618202787,0.1288,3888.5,3888.0,1.8277]
[1754618202993,2.57180518,3888.4,3888.0,1.8277]
[1754618203156,2.70050619,3888.5,3888.0,1.8277]
[1754618203357,2.70050619,3888.5,3888.1,1.8277]
[1754618203688,2.70050619,3888.5,3888.2,1.8711]
[1754618203988,0.1288,3888.5,3888.3,1.8711]
[1754618204396,0.1288,3888.5,3888.4,1.8711]
[1754618204911,2.57175187,3888.4,3888.0,1.8711]
[1754618205193,2.70049664,3888.5,3888.1,0.445]
[1754618205496,2.70049664,3888.5,3888.2,1.8711]
[1754618205699,6.62335972,3888.7,3888.3,2.3161]
[1754618205867,6.62335972,3888.7,3888.3,0.445]
[1754618206068,6.6233837,3888.7,3888.4,1.8711]
[1754618206268,2.57162428,3888.6,3888.4,1.8711]
[1754618206702,2.57184693,3888.3,3888.1,1.9999]
[1754618206868,2.70055112,3888.5,3887.9,0.1288]
[1754618207206,0.1288,3888.5,3888.0,1.8711]
[1754618207409,0.1288,3888.5,3887.9,0.1288]
[1754618207566,0.1288,3888.5,3888.1,1.8711]
[1754618207762,0.1288,3888.5,3888.2,1.8711]
[1754618208074,2.7005019,3888.5,3888.2,1.8711]
[1754618209100,2.70052262,3888.5,3888.2,1.8711]
[1754618209296,0.1288,3888.5,3888.3,1.8711]
[1754618209673,3.923,3888.7,3888.3,1.8711]
[1754618209873,4.0518,3888.7,3888.3,1.8711]
[1754618210074,2.571625,3888.6,3888.3,1.8711]
[1754618210406,0.1288,3888.7,3888.4,0.19999]
[1754618210590,6.4961587,3889.3,3888.5,0.445]
[1754618210982,6.4961587,3889.3,3888.6,1.8711]
[1754618211387,3.925,3889.3,3888.6,1.8711]
[1754618211572,6.49615825,3889.3,3888.7,0.445]
[1754618211901,6.49615825,3889.3,3888.8,1.8711]
[1754618211902,3.925,3889.3,3888.8,1.8711]
[1754618212099,3.925,3889.3,3888.7,2.57153406]
[1754618212303,3.925,3889.3,3888.9,2.3161]
[1754618212595,3.925,3889.3,3889.0,1.8711]
[1754618213407,3.925,3889.3,3889.1,1.8711]
[1754618214110,0.002,3889.3,3889.2,1.8711]
[1754618214401,0.002,3889.3,3888.9,1.8711]
[1754618214576,0.002,3889.3,3888.8,2.5714539]
[1754618214779,0.002,3889.3,3889.1,1.8711]
[1754618215294,0.002,3889.3,3889.2,1.8711]
[1754618217605,0.002,3889.3,3889.0,0.445]
[1754618217807,0.002,3889.3,3889.1,1.8711]
[1754618218806,0.002,3889.3,3888.8,1.8711]
[1754618219390,0.002,3889.3,3888.9,1.8711]
[1754618219907,0.002,3889.3,3889.0,0.445]
[1754618220414,0.002,3889.3,3889.1,1.8711]
[1754618220821,0.002,3889.3,3889.2,4.88732287]
[1754618220978,0.002,3889.7,3889.2,11.58391127]
[1754618221174,0.002,3889.7,3889.3,4.88720254]
[1754618221374,0.002,3889.7,3889.3,4.88724514]
[1754618221610,0.002,3889.7,3889.6,2.57095845]
[1754618221778,0.002,3889.7,3889.6,6.49395845]
[1754618221977,0.002,3889.7,3889.6,8.93885845]
[1754618222209,0.002,3889.7,3889.6,5.01585845]
[1754618222397,0.002,3889.7,3889.6,8.93885845]
[1754618222605,0.002,3889.7,3889.6,9.39598263]
[1754618223815,0.002,3889.7,3889.6,0.1288]
[1754618224680,0.002,3889.7,3889.1,4.27]
[1754618224883,2.4192,3889.7,3889.2,3.922]
[1754618225307,0.4632,3889.7,3889.2,5.7931]
[1754618225513,0.002,3889.7,3889.2,3.922]
[1754618225834,2.57290741,3889.7,3889.3,1.8711]
[1754618226177,0.002,3889.7,3889.4,2.3161]
[1754618226380,0.002,3889.7,3889.4,0.1288]
[1754618226604,0.002,3889.7,3889.4,1.9999]
[1754618227084,2.57292732,3889.7,3889.4,1.9999]
[1754618227280,2.57102455,3889.5,3889.4,0.1288]
[1754618227512,2.828527,3889.5,3889.4,0.1288]
[1754618227813,5.245727,3889.5,3889.4,0.1288]
[1754618228022,2.57109065,3889.4,3888.6,1.8711]
[1754618228180,2.57127762,3889.2,3888.9,0.1288]
[1754618228381,2.546,3889.5,3888.9,0.1288]
[1754618228621,2.57133576,3889.1,3888.8,3.922]
[1754618228809,2.57133576,3889.1,3888.8,4.0508]
[1754618229194,2.70001368,3889.3,3888.8,5.9219]
[1754618229394,2.70001368,3889.3,3888.9,1.8711]
[1754618230531,0.1288,3889.3,3888.8,4.0508]
[1754618230716,2.6999725,3889.3,3888.9,1.8711]
[1754618230918,0.1288,3889.3,3888.8,4.4958]
[1754618231099,0.1288,3889.3,3889.0,1.8711]
[1754618231503,0.1288,3889.3,3889.1,0.445]
[1754618231721,0.1288,3889.3,3888.8,0.1288]
[1754618231931,2.5713435,3889.1,3888.8,0.1288]
[1754618232090,2.57137527,3889.0,3888.8,0.1288]
[1754618232425,2.57137527,3889.0,3888.7,3.922]
[1754618232426,0.4612,3889.2,3888.6,4.0508]
[1754618232728,2.5713551,3889.0,3888.2,1.8711]
[1754618233032,2.57158611,3888.7,3888.4,3.922]
[1754618233185,0.1288,3888.9,3888.5,1.8711]
[1754618233390,3.922,3889.2,3888.5,2.3161]
[1754618233627,2.57134606,3889.1,3888.6,0.4297]
[1754618233787,2.57134606,3889.1,3888.7,1.824]
[1754618233992,2.57134606,3889.1,3888.4,6.49373948]
[1754618234231,6.62203889,3889.2,3888.8,1.824]
[1754618234537,2.57130763,3889.1,3888.8,1.824]
[1754618234704,6.6220325,3889.2,3888.8,1.824]
[1754618234908,2.57130855,3889.1,3888.9,1.824]
[1754618235122,2.5713551,3889.0,3888.9,1.824]
[1754618235512,2.57130192,3889.1,3888.9,1.824]
[1754618235818,2.70004307,3889.2,3888.9,1.824]
[1754618236004,0.1288,3889.2,3889.0,2.2537]
[1754618236327,0.1288,3889.2,3889.1,2.2537]
[1754618236525,2.57117337,3889.3,3889.1,2.2537]
[1754618236841,2.69997337,3889.3,3889.1,1.824]
[1754618237328,2.69997337,3889.3,3888.8,0.5585]
[1754618237329,0.1288,3889.3,3888.8,0.1288]
[1754618237529,2.57122287,3889.2,3888.8,1.9528]
[1754618237729,2.69996777,3889.3,3888.9,1.824]
[1754618238029,0.1288,3889.3,3889.0,2.2537]
[1754618238205,0.1288,3889.3,3889.1,1.824]
[1754618238713,0.1288,3889.3,3889.0,0.4297]
[1754618238916,0.1288,3889.3,3889.1,1.824]
[1754618239528,6.49296963,3889.6,3889.2,2.47907]
[1754618239696,6.49296972,3889.6,3889.3,1.824]
[1754618240430,2.57103214,3889.5,3889.3,1.824]
[1754618240999,2.57104593,3889.5,3889.3,1.824]
[1754618241199,3.922,3889.6,3889.4,1.824]
[1754618241429,0.1308,3889.7,3889.5,1.824]
[1754618241808,0.1308,3889.7,3889.3,1.824]
[1754618242524,0.1308,3889.7,3889.4,1.824]
[1754618242914,0.1308,3889.7,3889.1,0.5585]
[1754618243115,2.57095845,3889.6,3889.2,1.824]
[1754618243323,2.57095845,3889.6,3889.1,0.5585]
[1754618243527,2.57095845,3889.6,3889.3,1.824]
[1754618243925,2.5710311,3889.5,3889.1,0.1288]
[1754618244214,0.1308,3889.7,3889.2,1.824]
[1754618244610,2.70170045,3889.7,3889.3,0.4297]
[1754618244811,2.70170045,3889.7,3889.4,1.824]
[1754618245012,0.1308,3889.7,3889.5,1.824]
[1754618245229,0.1308,3889.7,3889.6,1.824]
[1754618245461,0.002,3889.7,3889.6,1.824]
[1754618245830,0.002,3889.7,3889.3,0.1288]
[1754618246034,2.57291112,3889.7,3889.3,0.1288]
[1754618246229,2.57096161,3889.6,3889.3,1.9528]
[1754618246448,2.57096161,3889.6,3889.3,1.824]
[1754618246645,2.57096161,3889.6,3889.1,0.1288]
[1754618246827,0.1308,3889.7,3889.4,1.824]
[1754618247026,2.70170542,3889.7,3889.5,1.824]
[1754618247854,2.57095845,3889.6,3889.2,2.2537]
[1754618248020,2.57103153,3889.5,3889.1,0.1288]
[1754618248221,2.57103153,3889.5,3889.1,1.9528]
[1754618248650,2.57103153,3889.5,3889.2,1.824]
[1754618248953,2.70169735,3889.7,3889.2,1.824]
[1754618249321,2.70169735,3889.7,3889.3,1.824]
[1754618249754,0.1308,3889.7,3889.3,1.824]
[1754618249923,2.70170095,3889.7,3889.4,1.824]
[1754618250126,2.70170095,3889.7,3889.3,0.4297]
[1754618250355,2.57095845,3889.6,3889.5,1.824]
[1754618250660,2.57095845,3889.6,3889.3,1.824]
[1754618251033,0.1308,3889.7,3889.4,1.824]
[1754618251233,0.1308,3889.7,3889.4,0.4297]
[1754618251234,2.70170723,3889.7,3889.4,0.4297]
[1754618251435,0.1308,3889.7,3889.5,1.824]
[1754618251633,2.70172214,3889.7,3889.5,1.824]
[1754618252859,0.1308,3889.7,3889.5,1.824]
[1754618253236,0.1308,3889.7,3889.1,0.1288]
[1754618253435,2.57095845,3889.6,3889.2,1.824]
[1754618253752,0.1308,3889.7,3889.3,1.824]
[1754618253955,0.1308,3889.7,3889.3,2.2537]
[1754618254249,0.1308,3889.7,3888.8,4.27]
[1754618254250,2.57155347,3888.7,3888.1,0.1288]
[1754618254455,6.62135347,3888.7,3887.9,1.824]
[1754618254652,8.88145347,3888.7,3887.8,0.001]
[1754618256825,6.49255347,3888.7,3888.2,1.825]
[1754618257147,2.70035347,3888.7,3888.6,1.825]
[1754618257458,2.70035347,3888.7,3888.6,0.001]
[1754618258155,4.96045347,3888.7,3888.6,0.001]
[1754618258355,5.58699936,3888.7,3888.6,0.001]
[1754618258659,10.05799936,3888.7,3888.6,1e-08]
[1754618259732,2.57181801,3888.3,3888.2,1e-08]
[1754618259974,7.13696839,3888.3,3888.2,1e-08]
[1754618260266,9.39706839,3888.3,3888.2,1e-08]
[1754618262280,7.56736839,3888.3,3888.2,1e-08]
[1754618262480,7.13696839,3888.3,3888.2,1e-08]
[1754618262787,6.62261801,3888.3,3888.2,1.82400001]
[1754618262973,6.62261801,3888.3,3888.2,2.25370001]
[1754618263480,6.62261801,3888.3,3888.2,1.82400001]
[1754618266451,6.62261801,3888.3,3888.2,2.28080001]
[1754618266852,2.70061801,3888.3,3888.2,2.28080001]
[1754618267092,0.1288,3888.3,3888.2,2.28080001]
[1754618267389,2.70061801,3888.3,3888.2,2.28080001]
[1754618269175,2.70061801,3888.3,3888.2,1.80300001]
[1754618269383,2.70061801,3888.3,3888.2,2.25980001]
[1754618270797,2.70061801,3888.3,3888.2,1e-08]
[1754618271459,6.62261801,3888.3,3888.2,1e-08]
[1754618271879,9.39594851,3888.3,3888.2,1e-08]
[1754618272110,9.86764851,3888.3,3888.2,1e-08]
[1754618272469,8.01374851,3888.3,3888.2,1e-08]
[1754618273117,9.86764851,3888.3,3888.2,1e-08]
[1754618274896,7.54204851,3888.3,3888.2,1e-08]
[1754618275418,8.01374851,3888.3,3888.2,1e-08]
[1754618275710,9.86764851,3888.3,3888.2,1e-08]
[1754618276674,8.01374851,3888.3,3888.2,1e-08]
[1754618276970,7.54204851,3888.3,3888.2,1e-08]
[1754618278308,9.86764851,3888.3,3888.2,1e-08]
[1754618280718,7.54204851,3888.3,3888.2,1e-08]
[1754618282349,9.86764851,3888.3,3888.2,1e-08]
[1754618282498,8.01374851,3888.3,3888.2,1e-08]
[1754618283323,7.54204851,3888.3,3888.2,1e-08]
[1754618284506,9.86764851,3888.3,3888.2,1e-08]
[1754618285549,8.01374851,3888.3,3888.2,1e-08]
[1754618286003,2.57208261,3887.9,3887.8,0.001]
[1754618286209,6.49408261,3887.9,3887.8,0.001]
[1754618286409,8.94848261,3887.9,3887.8,0.001]
[1754618286937,6.62288261,3887.9,3887.8,0.001]
[1754618287236,9.49848261,3887.9,3887.8,0.001]
[1754618287437,10.82991926,3887.9,3887.8,0.001]
[1754618287734,8.97601926,3887.9,3887.8,0.001]
[1754618288736,8.50431926,3887.9,3887.8,0.001]
[1754618290848,8.50431926,3887.9,3887.8,1.804]
[1754618291361,6.62288261,3887.9,3887.8,2.2608]
[1754618291744,6.62288261,3887.9,3887.8,1.804]
[1754618291924,6.62288261,3887.9,3887.8,0.001]
[1754618293640,7.06168261,3887.9,3887.8,0.001]
[1754618293815,10.08153926,3887.9,3887.8,0.001]
[1754618294147,7.71063926,3887.9,3887.8,0.001]
[1754618295457,10.63153926,3887.9,3887.8,1e-08]
[1754618296340,13.63153926,3887.9,3887.8,1e-08]
[1754618297254,11.69943926,3887.9,3887.8,1e-08]
[1754618297649,11.26063926,3887.9,3887.8,1e-08]
[1754618298248,11.69943926,3887.9,3887.8,1e-08]
[1754618298743,13.63153926,3887.9,3887.8,1e-08]
[1754618304161,13.82743579,3887.9,3887.8,1e-08]
[1754618305059,13.82743579,3887.9,3881.0,1.8313]
[1754618305060,5.28219571,3883.2,3881.0,1.8313]
[1754618305231,5.28219571,3883.2,3882.3,0.4633]
[1754618305232,4.40962153,3883.2,3882.3,0.4633]
[1754618305438,2.57519571,3883.2,3883.1,2.2946]
[1754618305667,2.57503873,3883.5,3883.1,2.2946]
[1754618305833,0.4633,3883.8,3883.2,2.2946]
[1754618306034,2.57506308,3883.4,3883.3,2.2946]
[1754618306634,3.95041314,3883.8,3882.7,0.4633]
[1754618306860,2.575461,3882.8,3882.7,0.4633]
[1754618307128,2.57585904,3882.2,3882.1,0.04]
[1754618307358,2.57585904,3882.2,3882.1,1.8713]
[1754618307764,2.57486417,3883.7,3882.1,2.52173]
[1754618307953,3.95041314,3883.8,3882.2,2.2946]
[1754618308156,0.95041314,3883.8,3882.3,1.8313]
[1754618308342,3.0,3883.6,3882.4,0.4633]
[1754618308547,2.57527774,3883.1,3882.4,0.4633]
[1754618308937,2.57547581,3882.8,3882.4,0.4633]
[1754618309148,2.83302339,3882.8,3882.1,0.04]
[1754618309379,0.25754758,3882.8,3882.5,2.2946]
[1754618309564,6.99615959,3883.3,3882.1,0.04]
[1754618309565,3.0,3882.9,3882.1,0.04]
[1754618309770,2.57540742,3882.9,3882.2,1.8313]
[1754618309937,3.0,3883.2,3882.2,1.8313]